fUST/lending_fUST_20251129
["ID","MTS","AMOUNT","RATE_DAILY","PERIOD"]
[395071487,1764397896120,-153.0,0.00028824,2]
[395071488,1764397896132,-200.0,0.00028846,120]
[395071489,1764397896141,-500.0,0.00028904,2]
[395071490,1764397896151,-344.0,0.00028997,14]
[395071491,1764397896159,-887.71760155,0.00029,2]
[395071492,1764397896169,-3140.72,0.00029,2]
[395071493,1764397896178,-500.0,0.00029041,2]
[395071494,1764397896188,-351.74351277,0.00029041,120]
[395071495,1764397896197,-200.0,0.00029117,120]
[395071496,1764397896206,-500.0,0.00029178,2]
[395071497,1764397896215,-13583.41826348,0.00029291,2]
[395071498,1764397896224,-500.0,0.00029315,2]
[395071499,1764397896235,-2860.0,0.00029347,2]
[395071500,1764397896249,-200.0,0.00029398,120]
[395071501,1764397896258,-344.0,0.00029432,14]
[395071502,1764397896267,-500.0,0.00029452,2]
[395071503,1764397896275,-2501.858831,0.000295,2]
[395071504,1764397896286,-500.0,0.00029589,2]
[395071505,1764397896295,-500.0,0.00029726,2]
[395071506,1764397896304,-160.0,0.000298,30]
[395071507,1764397896313,-160.0,0.000298,60]
[395071508,1764397896323,-365.75,0.000298,30]
[395071509,1764397896332,-500.0,0.00029863,2]
[395071510,1764397896341,-2043.22069041,0.00029895,2]
[395071511,1764397896350,-500.0,0.0003,2]
[395071512,1764397896359,-215781.51875376,0.0003,2]
[395071513,1764397896369,-12425.90545904,0.0003,2]
[395071514,1764397896379,-257.92,0.0003,7]
[395071515,1764397896388,-161.84,0.0003,2]
[395071516,1764397896398,-150.0,0.0003,2]
[395071517,1764397896407,-165.46,0.0003,5]
[395071518,1764397896417,-518.52671547,0.0003,2]
[395071519,1764397896426,-269.12805149,0.0003,2]
[395071520,1764397896436,-500.0,0.0003,120]
[395071521,1764397896445,-200.0,0.0003,120]
[395071522,1764397896454,-1865.0,0.0003,30]
[395071523,1764397896463,-833.54,0.0003,60]
[395071524,1764397896473,-300.97835876,0.0003,10]
[395071525,1764397896483,-874.05,0.0003,7]
[395071526,1764397896493,-81664.44227955,0.0003,2]
[395071527,1764397896504,-30127.39626799,0.0003,12]
[395071528,1764397896513,-157.0,0.0003,14]
[395071529,1764397896523,-353.59244258,0.0003,120]
[395071530,1764397896532,-350.67327143,0.0003,4]
[395071531,1764397896542,-160.0,0.0003,30]
[395071532,1764397896551,-43548.61820027,0.0003,30]
[395071533,1764397896560,-160.0,0.0003,30]
[395071534,1764397896569,-353.63036686,0.0003,30]
[395071535,1764397896578,-1003.6,0.0003,30]
[395071536,1764397896588,-522726.02774659,0.0003,2]
[395071537,1764397896596,-17885.68555216,0.0003,2]
[395071538,1764397896606,-15703.85920352,0.0003,2]
[395071539,1764397896615,-1500.0,0.0003,2]
[395071540,1764397896631,-200.0,0.00030004,120]
[395071541,1764397896641,-1003.6,0.0003006,30]
[395071542,1764397896651,-287.26189354,0.0003013,2]
[395071543,1764397896661,-4571.30797235,0.00030136,120]
[395071544,1764397896670,-500.0,0.00030136,120]
[395071545,1764397896679,-508.89592833,0.00030136,120]
[395071546,1764397896689,-1000.0,0.00030136,60]
[395071547,1764397896698,-507.10936285,0.00030136,60]
[395071548,1764397896708,-500.0,0.00030137,2]
[395071549,1764397896719,-500.0,0.00030137,120]
[395071550,1764397896731,-3399.505056,0.00030137,120]
[395071551,1764397896740,-2200.0,0.00030137,120]
[395071552,1764397896750,-674.73835775,0.0003022,2]
[395071553,1764397896759,-500.0,0.00030274,2]
[395071554,1764397896769,-200.0,0.00030275,120]
[395071555,1764397896778,-393.0,0.00030365,2]
[395071556,1764397896787,-500.0,0.00030411,2]
[395071557,1764397896796,-344.0,0.00030447,14]
[395071558,1764397896805,-200.0,0.00030472,120]
[395071559,1764397896814,-500.0,0.00030548,2]
[395071560,1764397896822,-200.0,0.00030597,120]
[395071561,1764397896831,-500.0,0.00030685,2]
[395071562,1764397896840,-200.0,0.00030751,120]
[395071563,1764397896849,-534.19151745,0.00030822,2]
[395071564,1764397896857,-353.63036686,0.000309,30]
[395071565,1764397896866,-200.0,0.00030902,120]
[395071566,1764397896875,-158.910917,0.00030924,60]
[395071567,1764397896884,-305.43363527,0.0003099,2]
[395071568,1764397896894,-212.29,0.00031,7]
[395071569,1764397896903,-416.310908,0.00031,120]
[395071570,1764397896911,-1159.70199365,0.00031,120]
[395071571,1764397896920,-161.89809148,0.00031,120]
[395071572,1764397896929,-1013.00763222,0.00031,120]
[395071573,1764397896937,-1200.07638839,0.00031,120]
[395071574,1764397896946,-1519.13274908,0.00031,120]
[395071575,1764397896955,-1805.81793361,0.00031,120]
[395071576,1764397896964,-535.29873589,0.00031,120]
[395071577,1764397896973,-304.60120298,0.00031,120]
[395071578,1764397896981,-176.17650753,0.00031,120]
[395071579,1764397896990,-266.08328166,0.00031,120]
[395071580,1764397896999,-442.95831411,0.00031,120]
[395071581,1764397897008,-1486.08069461,0.00031,120]
[395071582,1764397897016,-444.03075735,0.00031,120]
[395071583,1764397897025,-173.7306542,0.00031,120]
[395071584,1764397897034,-1085.05042693,0.00031,120]
[395071585,1764397897043,-160.0,0.00031,120]
[395071586,1764397897052,-323.0,0.00031,3]
[395071587,1764397897061,-20291.37521051,0.0003112,2]
[395071588,1764397897069,-414.0,0.00031471,2]
[395071589,1764397897078,-200.0,0.00031596,120]
[395071590,1764397897230,-190.01,0.000316,14]
[395071591,1764397897244,-158.910917,0.00031624,30]
[395071592,1764397897253,-166.0,0.00031644,47]
[395071593,1764397897262,-416.310908,0.000319,120]
[395071594,1764397897271,-1159.70199365,0.000319,120]
[395071595,1764397897280,-161.89809148,0.000319,120]
[395071596,1764397897289,-1013.00763222,0.000319,120]
[395071597,1764397897298,-1200.07638839,0.000319,120]
[395071598,1764397897307,-1519.13274908,0.000319,120]
[395071599,1764397897317,-1805.81793361,0.000319,120]
[395071600,1764397897325,-535.29873589,0.000319,120]
[395071601,1764397897334,-304.60120298,0.000319,120]
[395071602,1764397897343,-176.17650753,0.000319,120]
[395071603,1764397897351,-266.08328166,0.000319,120]
[395071604,1764397897360,-442.95831411,0.000319,120]
[395071605,1764397897369,-1486.08069461,0.000319,120]
[395071606,1764397897378,-444.03075735,0.000319,120]
[395071607,1764397897386,-173.7306542,0.000319,120]
[395071608,1764397897395,-1085.05042693,0.000319,120]
[395071609,1764397897404,-43868.26827666,0.000319,2]
[395071610,1764397897413,-13583.41826348,0.00031948,2]
[395071611,1764397897421,-8463.14994984,0.00032,30]
[395071612,1764397897431,-749.30333128,0.00032,120]
[395071613,1764397897439,-216.0,0.00032,120]
[395071614,1764397897448,-1632.4142314,0.00032,120]
[395071615,1764397897458,-200.0,0.00032007,120]
[395071616,1764397897467,-200.0,0.00032177,120]
[395071617,1764397897477,-20000.0,0.000323,120]
[395071618,1764397897487,-200.0,0.00032327,120]
[395071619,1764397897497,-420.0,0.00032365,2]
[395071620,1764397897507,-200.0,0.00032455,120]
[395071621,1764397897517,-500.0,0.000325,120]
[395071622,1764397897527,-10124.0,0.000325,120]
[395071623,1764397897538,-200.0,0.00032525,120]
[395071624,1764397897548,-200.0,0.00032528,120]
[395071625,1764397897558,-200.0,0.00032578,120]
[395071626,1764397897568,-356.8998566,0.0003267,120]
[395071627,1764397897578,-200.0,0.00032721,120]
[395071628,1764397897587,-200.0,0.00032724,120]
[395071629,1764397897596,-500.0,0.000328,120]
[395071630,1764397897606,-1368.45441301,0.00032849,2]
[395071631,1764397897616,-45000.0,0.0003287,2]
[395071632,1764397897625,-574.11,0.00032876,2]
[395071633,1764397897635,-574.11,0.00032876,2]
[395071634,1764397897644,-574.11,0.00032876,2]
[395071635,1764397897657,-574.11,0.00032876,2]
[395071636,1764397897666,-574.11,0.00032876,2]
[395071637,1764397897675,-574.11,0.00032876,2]
[395071638,1764397897685,-574.11,0.00032876,2]
[395071639,1764397897694,-574.11,0.00032876,2]
[395071640,1764397897703,-574.11,0.00032876,2]
[395071641,1764397897713,-574.11,0.00032876,2]
[395071642,1764397897722,-574.11,0.00032876,2]
[395071643,1764397897731,-574.11,0.00032876,2]
[395071644,1764397897740,-574.11,0.00032876,2]
[395071645,1764397897750,-574.11,0.00032876,2]
[395071646,1764397897759,-574.11,0.00032876,2]
[395071647,1764397897767,-574.11,0.00032876,2]
[395071648,1764397897777,-574.11,0.00032876,2]
[395071649,1764397897786,-574.11,0.00032876,2]
[395071650,1764397897795,-574.11,0.00032876,2]
[395071651,1764397897804,-574.11,0.00032876,2]
[395071652,1764397897813,-574.11,0.00032876,2]
[395071653,1764397897822,-574.11,0.00032876,2]
[395071654,1764397897831,-574.11,0.00032876,2]
[395071655,1764397897841,-574.14167322,0.00032876,2]
[395071656,1764397897850,-482.84596473,0.00032876,2]
[395071657,1764397897859,-426.67051093,0.00032876,2]
[395071658,1764397897867,-500.0,0.00032876,2]
[395071659,1764397897877,-521.18002863,0.00032876,2]
[395071660,1764397897886,-295.3905656,0.00032876,2]
[395071661,1764397897895,-500.0,0.00032876,2]
[395071662,1764397897905,-500.0,0.00032876,2]
[395071663,1764397897914,-500.0,0.00032876,2]
[395071664,1764397897923,-500.0,0.00032876,2]
[395071665,1764397897931,-226.71378072,0.00032876,2]
[395071666,1764397897941,-4615.63,0.00032876,120]
[395071667,1764397897950,-500.0,0.00032877,120]
[395071668,1764397897959,-313.0,0.00032877,10]
[395071669,1764397897968,-151.0,0.00032877,31]
[395071670,1764397897978,-151.0,0.00032877,31]
[395071671,1764397897987,-151.0,0.00032877,31]
[395071672,1764397897997,-151.0,0.00032877,31]
[395071673,1764397898006,-151.0,0.00032877,31]
[395071674,1764397898016,-151.0,0.00032877,31]
[395071675,1764397898025,-151.0,0.00032877,31]
[395071676,1764397898035,-151.0,0.00032877,31]
[395071677,1764397898045,-151.0,0.00032877,31]
[395071678,1764397898055,-151.0,0.00032877,31]
[395071679,1764397898065,-151.0,0.00032877,31]
[395071680,1764397898075,-151.0,0.00032877,31]
[395071681,1764397898085,-151.0,0.00032877,31]
[395071682,1764397898095,-151.0,0.00032877,31]
[395071683,1764397898106,-151.0,0.00032877,31]
[395071684,1764397898116,-151.0,0.00032877,31]
[395071685,1764397898126,-151.0,0.00032877,31]
[395071686,1764397898136,-279.226627,0.00032877,31]
[395071687,1764397898145,-19838.39,0.00032877,10]
[395071688,1764397898156,-16531.99,0.00032877,10]
[395071689,1764397898166,-13776.66,0.00032877,10]
[395071690,1764397898176,-500.0,0.00032877,7]
[395071691,1764397898186,-500.0,0.00032877,7]
[395071692,1764397898195,-500.0,0.00032877,7]
[395071693,1764397898204,-500.0,0.00032877,7]
[395071694,1764397898214,-500.0,0.00032877,7]
[395071695,1764397898223,-500.0,0.00032877,7]
[395071696,1764397898232,-500.0,0.00032877,7]
[395071697,1764397898247,-500.0,0.00032877,7]
[395071698,1764397898256,-601.95618329,0.00032877,7]
[395071699,1764397898266,-500.0,0.00032877,7]
[395071700,1764397898275,-500.0,0.00032877,7]
[395071701,1764397898285,-500.0,0.00032877,7]
[395071702,1764397898294,-500.0,0.00032877,7]
[395071703,1764397898304,-500.0,0.00032877,7]
[395071704,1764397898314,-500.0,0.00032877,7]
[395071705,1764397898324,-500.0,0.00032877,7]
[395071706,1764397898333,-500.0,0.00032877,7]
[395071707,1764397898343,-500.0,0.00032877,7]
[395071708,1764397898352,-500.0,0.00032877,7]
[395071709,1764397898362,-500.0,0.00032877,7]
[395071710,1764397898372,-500.0,0.00032877,7]
[395071711,1764397898382,-500.0,0.00032877,7]
[395071712,1764397898391,-500.0,0.00032877,7]
[395071713,1764397898401,-455.77290925,0.00032877,7]
[395071714,1764397898410,-500.0,0.00032877,7]
[395071715,1764397898420,-500.0,0.00032877,7]
[395071716,1764397898430,-500.0,0.00032877,7]
[395071717,1764397898440,-500.0,0.00032877,7]
[395071718,1764397898449,-500.0,0.00032877,7]
[395071719,1764397898459,-500.0,0.00032877,7]
[395071720,1764397898469,-500.0,0.00032877,7]
[395071721,1764397898478,-500.0,0.00032877,7]
[395071722,1764397898488,-500.0,0.00032877,7]
[395071723,1764397898498,-500.0,0.00032877,7]
[395071724,1764397898508,-500.0,0.00032877,7]
[395071725,1764397898518,-500.0,0.00032877,7]
[395071726,1764397898527,-500.0,0.00032877,7]
[395071727,1764397898537,-500.0,0.00032877,7]
[395071728,1764397898547,-300.00000001,0.00032877,7]
[395071729,1764397898556,-200.0,0.00032877,7]
[395071730,1764397898566,-205.29560303,0.00032877,2]
[395071731,1764397898575,-1440.0,0.00032877,2]
[395071732,1764397898584,-475.3950805,0.0003288,120]
[395071733,1764397898593,-416.310908,0.000329,120]
[395071734,1764397898603,-1159.70199365,0.000329,120]
[395071735,1764397898612,-161.89809148,0.000329,120]
[395071736,1764397898622,-1013.00763222,0.000329,120]
[395071737,1764397898632,-1200.07638839,0.000329,120]
[395071738,1764397898641,-1519.13274908,0.000329,120]
[395071739,1764397898652,-1805.81793361,0.000329,120]
[395071740,1764397898662,-535.29873589,0.000329,120]
[395071741,1764397898671,-304.60120298,0.000329,120]
[395071742,1764397898680,-176.17650753,0.000329,120]
[395071743,1764397898690,-266.08328166,0.000329,120]
[395071744,1764397898699,-442.95831411,0.000329,120]
[395071745,1764397898709,-1486.08069461,0.000329,120]
[395071746,1764397898719,-444.03075735,0.000329,120]
[395071747,1764397898728,-173.7306542,0.000329,120]
[395071748,1764397898738,-1085.05042693,0.000329,120]
[395071749,1764397898748,-325.0484407,0.00033,120]
[395071750,1764397898757,-1000.0,0.00033,120]
[395071751,1764397898767,-9999.999999,0.00033,10]
[395071752,1764397898776,-3140.72,0.00033,14]
[395071753,1764397898785,-88723.14860524,0.00033,2]
[395071754,1764397898794,-1440.0,0.00033014,2]
[395071755,1764397898803,-302.0,0.00033148,2]
[395071756,1764397898812,-1440.0,0.00033151,2]
[395071757,1764397898821,-302.18961,0.00033155,2]
[395071758,1764397898830,-1319.381634,0.00033165,2]
[395071759,1764397898839,-1305.13028844,0.000332,117]
[395071760,1764397898849,-1440.0,0.00033288,2]
[395071761,1764397898858,-190.01,0.000333,30]
[395071762,1764397898867,-302.00357,0.00033364,2]
[395071763,1764397898876,-200.0,0.00033401,120]
[395071764,1764397898886,-1440.0,0.00033425,2]
[395071765,1764397898895,-200.0,0.00033522,120]
[395071766,1764397898905,-1440.0,0.00033562,2]
[395071767,1764397898915,-1440.0,0.00033699,2]
[395071768,1764397898924,-200.0,0.00033727,120]
[395071769,1764397898935,-200.0,0.00033818,120]
[395071770,1764397898944,-180.0,0.00033836,64]
[395071771,1764397898953,-1440.0,0.00033836,2]
[395071772,1764397898962,-200.0,0.00033856,120]
[395071773,1764397898970,-416.310908,0.000339,120]
[395071774,1764397898979,-1159.70199365,0.000339,120]
[395071775,1764397898989,-161.89809148,0.000339,120]
[395071776,1764397898997,-1013.00763222,0.000339,120]
[395071777,1764397899006,-1200.07638839,0.000339,120]
[395071778,1764397899016,-1519.13274908,0.000339,120]
[395071779,1764397899031,-1805.81793361,0.000339,120]
[395071780,1764397899040,-535.29873589,0.000339,120]
[395071781,1764397899049,-304.60120298,0.000339,120]
[395071782,1764397899058,-176.17650753,0.000339,120]
[395071783,1764397899067,-266.08328166,0.000339,120]
[395071784,1764397899076,-442.95831411,0.000339,120]
[395071785,1764397899085,-1486.08069461,0.000339,120]
[395071786,1764397899094,-444.03075735,0.000339,120]
[395071787,1764397899103,-173.7306542,0.000339,120]
[395071788,1764397899111,-1085.05042693,0.000339,120]
[395071789,1764397899121,-1440.0,0.00033973,2]
[395071790,1764397899130,-524.0,0.0003399,60]
[395071791,1764397899138,-20443.42583091,0.0003399,2]
[395071792,1764397899147,-4057.72064894,0.00034,120]
[395071793,1764397899156,-1018.66610325,0.00034,2]
[395071794,1764397899165,-874.05,0.00034,7]
[395071795,1764397899174,-4615.63,0.00034109,120]
[395071796,1764397899183,-1440.0,0.0003411,2]
[395071797,1764397899192,-95000.0,0.00034247,30]
[395071798,1764397899201,-1440.0,0.00034247,2]
[395071799,1764397899210,-447.0,0.00034365,120]
[395071800,1764397899219,-1440.0,0.00034384,2]
[395071801,1764397899228,-200.0,0.00034462,120]
[395071802,1764397899239,-414.0,0.00034471,2]
[395071803,1764397899250,-1440.0,0.00034521,2]
[395071804,1764397899259,-200.0,0.00034544,120]
[395071805,1764397899268,-13583.41826348,0.00034606,2]
[395071806,1764397899278,-1440.0,0.00034658,2]
[395071807,1764397899287,-190.01,0.000347,30]
[395071808,1764397899296,-1440.0,0.00034795,2]
[395071809,1764397899305,-200.0,0.00034899,120]
[395071810,1764397899314,-416.310908,0.000349,120]
[395071811,1764397899324,-1159.70199365,0.000349,120]
[395071812,1764397899333,-161.89809148,0.000349,120]
[395071813,1764397899342,-1013.00763222,0.000349,120]
[395071814,1764397899352,-1200.07638839,0.000349,120]
[395071815,1764397899361,-1519.13274908,0.000349,120]
[395071816,1764397899370,-1805.81793361,0.000349,120]
[395071817,1764397899379,-535.29873589,0.000349,120]
[395071818,1764397899388,-304.60120298,0.000349,120]
[395071819,1764397899397,-176.17650753,0.000349,120]
[395071820,1764397899407,-266.08328166,0.000349,120]
[395071821,1764397899416,-442.95831411,0.000349,120]
[395071822,1764397899425,-1486.08069461,0.000349,120]
[395071823,1764397899434,-444.03075735,0.000349,120]
[395071824,1764397899443,-1085.05042693,0.000349,120]
[395071825,1764397899453,-148158.38006729,0.000349,2]
[395071826,1764397899462,-368829.42633377,0.000349,2]
[395071827,1764397899472,-1440.0,0.00034932,2]
[395071828,1764397899480,-200.0,0.00034964,120]
[395071829,1764397899490,-2134.28606367,0.0003498,7]
[395071830,1764397899499,-456.0,0.00035,120]
[395071831,1764397899507,-2294.0,0.00035,5]
[395071832,1764397899517,-200.0,0.00035,120]
[395071833,1764397899526,-659.34397091,0.00035,2]
[395071834,1764397899535,-152.0,0.00035,120]
[395071835,1764397899543,-500.0,0.00035,120]
[395071836,1764397899553,-2000.0,0.00035,3]
[395071837,1764397899562,-14759.93019061,0.00035,14]
[395071838,1764397899571,-150.0,0.00035,69]
[395071839,1764397899581,-205.758674,0.00035,30]
[395071840,1764397899589,-205.758674,0.00035,30]
[395071841,1764397899599,-10743.31795297,0.00035,2]
[395071842,1764397899608,-1000.0,0.00035,2]
[395071843,1764397899617,-3396.49158392,0.00035,2]
[395071844,1764397899626,-448.39504349,0.00035,120]
[395071845,1764397899636,-1500.0,0.00035,2]
[395071846,1764397899646,-312.77092375,0.00035,60]
[395071847,1764397899655,-5783.0,0.00035,120]
[395071848,1764397899665,-1000.0,0.00035,120]
[395071849,1764397899675,-1440.0,0.00035069,2]
[395071850,1764397899685,-403.74,0.00035082,60]
[395071851,1764397899694,-6002.36895374,0.000351,3]
[395071852,1764397899703,-1200.0,0.00035129,14]
[395071853,1764397899849,-3399.505056,0.0003516,120]
[395071854,1764397899861,-403.74,0.00035182,60]
[395071855,1764397899871,-1440.0,0.00035206,2]
[395071856,1764397899881,-403.74,0.00035282,60]
[395071857,1764397899890,-4615.63,0.00035342,120]
[395071858,1764397899900,-1440.0,0.00035343,2]
[395071859,1764397899909,-403.74,0.00035382,60]
[395071860,1764397899918,-200.0,0.00035471,120]
[395071861,1764397899927,-1440.0,0.0003548,2]
[395071862,1764397899936,-403.74,0.00035482,60]
[395071863,1764397899946,-155.245964,0.00035565,33]
[395071864,1764397899955,-155.245964,0.00035565,35]
[395071865,1764397899964,-403.74,0.00035582,60]
[395071866,1764397899973,-152.0,0.000356,120]
[395071867,1764397899982,-500.0,0.00035616,120]
[395071868,1764397899992,-150.0,0.00035616,5]
[395071869,1764397900001,-1440.0,0.00035617,2]
[395071870,1764397900010,-403.74,0.00035682,60]
[395071871,1764397900019,-1440.0,0.00035754,2]
[395071872,1764397900027,-403.74,0.00035782,60]
[395071873,1764397900036,-190.01,0.000358,30]
[395071874,1764397900046,-403.74,0.00035882,60]
[395071875,1764397900055,-1440.0,0.00035891,2]
[395071876,1764397900064,-1486.08069461,0.000359,120]
[395071877,1764397900072,-1085.05042693,0.000359,120]
[395071878,1764397900081,-1200.0,0.00035951,14]
[395071879,1764397900090,-403.74,0.00035982,60]
[395071880,1764397900100,-283.72629423,0.00036,60]
[395071881,1764397900109,-765.49992529,0.00036,60]
[395071882,1764397900118,-1370.14944973,0.00036,120]
[395071883,1764397900127,-300.0,0.00036,120]
[395071884,1764397900136,-2192.0,0.00036,120]
[395071885,1764397900145,-2003.7,0.00036,36]
[395071886,1764397900154,-514.19765935,0.00036,120]
[395071887,1764397900163,-12269.0,0.00036,120]
[395071888,1764397900173,-1462.77416295,0.00036028,2]
[395071889,1764397900181,-200.0,0.00036048,120]
[395071890,1764397900191,-403.74,0.00036082,60]
[395071891,1764397900201,-403.74,0.00036182,60]
[395071892,1764397900210,-204.65431318,0.0003621,2]
[395071893,1764397900220,-266.18298863,0.0003624,2]
[395071894,1764397900230,-403.74,0.00036282,60]
[395071895,1764397900243,-152.0,0.000363,120]
[395071896,1764397900252,-474.0,0.00036365,120]
[395071897,1764397900262,-269.0613019,0.0003637,16]
[395071898,1764397900271,-403.74,0.00036382,60]
[395071899,1764397900281,-199.0,0.00036438,30]
[395071900,1764397900291,-250.0,0.00036438,5]
[395071901,1764397900300,-403.74,0.00036482,60]
[395071902,1764397900310,-4000.0,0.000365,50]
[395071903,1764397900320,-8989.09309587,0.000365,120]
[395071904,1764397900330,-4615.63,0.00036575,120]
[395071905,1764397900339,-200.0,0.00036578,120]
[395071906,1764397900348,-403.74,0.00036582,60]
[395071907,1764397900358,-4502.07023793,0.000366,30]
[395071908,1764397900367,-403.74,0.00036682,60]
[395071909,1764397900376,-1200.0,0.00036773,14]
[395071910,1764397900385,-403.74,0.00036782,60]
[395071911,1764397900395,-2607.51420981,0.000368,90]
[395071912,1764397900405,-200.0,0.00036848,120]
[395071913,1764397900414,-3783.30945432,0.0003686,2]
[395071914,1764397900423,-4016.88,0.0003688,90]
[395071915,1764397900433,-403.74,0.00036882,60]
[395071916,1764397900443,-1024.84,0.00036882,4]
[395071917,1764397900452,-190.01,0.000369,30]
[395071918,1764397900461,-152.0,0.000369,120]
[395071919,1764397900471,-200.0,0.00036915,120]
[395071920,1764397900480,-200.0,0.00036919,120]
[395071921,1764397900489,-403.74,0.00036982,60]
[395071922,1764397900498,-300.0,0.00037,120]
[395071923,1764397900508,-1000.0,0.00037,120]
[395071924,1764397900517,-2040.37323594,0.00037,2]
[395071925,1764397900527,-256.69818673,0.00037,120]
[395071926,1764397900536,-1486.08069461,0.00037,120]
[395071927,1764397900545,-1085.05042693,0.00037,120]
[395071928,1764397900554,-446.403858,0.00037,30]
[395071929,1764397900564,-12940.897,0.00037,120]
[395071930,1764397900573,-3140.72,0.00037,14]
[395071931,1764397900583,-750.2737358,0.00037,2]
[395071932,1764397900592,-151.0,0.00037046,30]
[395071933,1764397900602,-2000.0,0.00037046,30]
[395071934,1764397900612,-500.0,0.00037046,30]
[395071935,1764397900621,-250.0,0.00037046,30]
[395071936,1764397900630,-151.0,0.00037046,30]
[395071937,1764397900639,-250.0,0.00037046,30]
[395071938,1764397900648,-151.0,0.00037046,30]
[395071939,1764397900657,-2000.0,0.00037046,30]
[395071940,1764397900667,-500.0,0.00037046,30]
[395071941,1764397900677,-2000.0,0.00037046,30]
[395071942,1764397900686,-228.35479607,0.00037046,30]
[395071943,1764397900696,-250.0,0.00037046,30]
[395071944,1764397900706,-500.0,0.00037046,30]
[395071945,1764397900717,-151.0,0.00037046,30]
[395071946,1764397900726,-259.25,0.00037046,31]
[395071947,1764397900735,-259.32514937,0.00037046,30]
[395071948,1764397900745,-2000.0,0.00037046,30]
[395071949,1764397900754,-414.0,0.00037046,30]
[395071950,1764397900763,-500.0,0.00037046,30]
[395071951,1764397900773,-2000.0,0.00037046,30]
[395071952,1764397900782,-250.0,0.00037046,30]
[395071953,1764397900791,-500.0,0.00037046,30]
[395071954,1764397900800,-151.0,0.00037046,30]
[395071955,1764397900810,-2000.0,0.00037046,30]
[395071956,1764397900818,-371.42322455,0.00037046,30]
[395071957,1764397900827,-500.0,0.00037046,30]
[395071958,1764397900837,-2000.0,0.00037046,30]
[395071959,1764397900847,-250.0,0.00037046,30]
[395071960,1764397900857,-500.0,0.00037046,30]
[395071961,1764397900866,-151.0,0.00037046,30]
[395071962,1764397900875,-2000.0,0.00037046,30]
[395071963,1764397900884,-500.0,0.00037046,30]
[395071964,1764397900893,-250.0,0.00037046,30]
[395071965,1764397900902,-500.0,0.00037046,30]
[395071966,1764397900910,-2000.0,0.00037046,30]
[395071967,1764397900919,-151.0,0.00037046,30]
[395071968,1764397900928,-151.0,0.00037046,30]
[395071969,1764397900937,-2000.0,0.00037046,30]
[395071970,1764397900946,-500.0,0.00037046,30]
[395071971,1764397900955,-250.0,0.00037046,30]
[395071972,1764397900964,-500.0,0.00037046,30]
[395071973,1764397900973,-2000.0,0.00037046,30]
[395071974,1764397900982,-151.0,0.00037046,30]
[395071975,1764397900991,-156.587,0.00037046,30]
[395071976,1764397901001,-2010.8337941,0.00037046,30]
[395071977,1764397901010,-500.0,0.00037046,30]
[395071978,1764397901019,-251.33809881,0.00037046,30]
[395071979,1764397901029,-2000.0,0.00037046,30]
[395071980,1764397901038,-162.380719,0.00037046,30]
[395071981,1764397901047,-500.0,0.00037046,30]
[395071982,1764397901056,-500.0,0.00037046,30]
[395071983,1764397901065,-161.66236223,0.00037046,30]
[395071984,1764397901074,-168.3888056,0.00037046,30]
[395071985,1764397901083,-151.0,0.00037046,30]
[395071986,1764397901093,-500.0,0.00037046,30]